fUST/lending_fUST_20260128
["ID","MTS","AMOUNT","RATE_DAILY","PERIOD"]
[403809251,1769548245114,-176.57192746,0.0001874,2]
[403809253,1769548245123,-706.28770983,0.0001874,2]
[403809255,1769548245132,-1589.14734712,0.0001874,2]
[403809257,1769548245141,-234.80439612,0.0001874,2]
[403809259,1769548245153,-422.64791302,0.0001874,2]
[403809261,1769548245162,-235.516526,0.00018833,7]
[403809263,1769548245171,-303.10001603,0.000189,2]
[403809265,1769548245180,-729.0,0.0001892,2]
[403809267,1769548245190,-5972.70887681,0.0001898,2]
[403809269,1769548245201,-1780.15686304,0.00018985,2]
[403809271,1769548245210,-29830.00000004,0.00019,2]
[403809273,1769548245220,-159.787091,0.00019,2]
[403809275,1769548245232,-151.0,0.00019,2]
[403809277,1769548245241,-151.0,0.00019,2]
[403809279,1769548245253,-151.0,0.00019,2]
[403809281,1769548245263,-216.640642,0.00019,2]
[403809283,1769548245273,-151.0,0.00019,2]
[403809285,1769548245283,-229.229932,0.00019,2]
[403809287,1769548245293,-151.0,0.00019,2]
[403809289,1769548245303,-201.11967165,0.00019,2]
[403809291,1769548245312,-529.543312,0.00019,2]
[403809293,1769548245322,-529.543312,0.00019,2]
[403809295,1769548245331,-529.543312,0.00019,2]
[403809297,1769548245340,-529.543312,0.00019,2]
[403809299,1769548245350,-442.28213914,0.00019048,2]
[403809301,1769548245359,-32261.07,0.00019085,2]
[403809303,1769548245368,-2876.18991768,0.00019085,2]
[403809305,1769548245377,-595.37131296,0.00019085,2]
[403809307,1769548245388,-303.10001603,0.00019089,2]
[403809309,1769548245396,-151.0,0.00019135,2]
[403809311,1769548245405,-151.0,0.00019135,2]
[403809313,1769548245414,-151.0,0.00019178,2]
[403809315,1769548245423,-151.0,0.00019178,2]
[403809317,1769548245432,-151.0,0.00019178,2]
[403809319,1769548245442,-151.0,0.00019178,2]
[403809321,1769548245451,-151.0,0.00019178,2]
[403809323,1769548245461,-151.0,0.00019178,2]
[403809324,1769548245470,-151.0,0.00019178,2]
[403809327,1769548245480,-151.0,0.00019178,2]
[403809328,1769548245490,-151.0,0.00019178,2]
[403809330,1769548245499,-151.0,0.00019178,2]
[403809332,1769548245508,-151.0,0.00019178,2]
[403809334,1769548245517,-151.0,0.00019178,2]
[403809336,1769548245526,-151.0,0.00019178,2]
[403809338,1769548245534,-151.782866,0.00019178,2]
[403809340,1769548245543,-151.0,0.00019178,2]
[403809342,1769548245553,-163.953478,0.00019178,2]
[403809344,1769548245562,-529.543312,0.00019178,2]
[403809346,1769548245571,-529.543312,0.00019178,2]
[403809348,1769548245580,-529.543312,0.00019178,2]
[403809350,1769548245590,-529.543312,0.00019178,2]
[403809352,1769548245599,-529.543312,0.00019178,2]
[403809354,1769548245608,-529.543312,0.00019178,2]
[403809356,1769548245618,-529.543312,0.00019178,2]
[403809358,1769548245627,-529.543312,0.00019178,2]
[403809360,1769548245636,-529.543312,0.00019178,2]
[403809362,1769548245646,-529.543312,0.00019178,2]
[403809364,1769548245655,-529.543312,0.00019178,2]
[403809366,1769548245665,-529.543312,0.00019178,2]
[403809368,1769548245674,-151.0,0.00019178,2]
[403809370,1769548245683,-276.802729,0.00019178,2]
[403809373,1769548245692,-257.35298,0.00019178,2]
[403809374,1769548245702,-151.0,0.00019178,2]
[403809376,1769548245711,-151.0,0.00019178,2]
[403809378,1769548245719,-151.0,0.00019178,2]
[403809380,1769548245728,-153.733115,0.00019178,2]
[403809382,1769548245737,-151.0,0.00019178,2]
[403809384,1769548245747,-151.0,0.00019178,2]
[403809386,1769548245756,-151.0,0.00019178,2]
[403809388,1769548245765,-151.0,0.00019178,2]
[403809390,1769548245774,-292.327144,0.00019178,2]
[403809392,1769548245783,-151.0,0.00019178,2]
[403809394,1769548245793,-151.0,0.00019178,2]
[403809396,1769548245802,-170.482931,0.00019178,2]
[403809398,1769548245812,-151.0,0.00019178,2]
[403809400,1769548245821,-151.0,0.00019178,2]
[403809402,1769548245829,-151.0,0.00019178,2]
[403809404,1769548245839,-151.0,0.00019178,2]
[403809408,1769548245848,-151.0,0.00019178,2]
[403809410,1769548245857,-151.0,0.00019178,2]
[403809412,1769548245865,-151.0,0.00019178,2]
[403809415,1769548245875,-151.0,0.00019178,2]
[403809418,1769548245884,-151.0,0.00019178,2]
[403809421,1769548245893,-262.367391,0.00019178,2]
[403809424,1769548245905,-3273.728464,0.00019178,2]
[403809427,1769548245915,-3273.728464,0.00019178,2]
[403809430,1769548245924,-3273.728464,0.00019178,2]
[403809432,1769548245934,-3273.728464,0.00019178,2]
[403809434,1769548245943,-3273.728464,0.00019178,2]
[403809436,1769548245952,-3273.728464,0.00019178,2]
[403809438,1769548245961,-249.905202,0.00019178,2]
[403809440,1769548245971,-3273.728464,0.00019178,2]
[403809442,1769548245980,-249.905202,0.00019178,2]
[403809444,1769548245989,-249.905202,0.00019178,2]
[403809446,1769548245998,-3273.728464,0.00019178,2]
[403809448,1769548246007,-249.905202,0.00019178,2]
[403809450,1769548246016,-3273.728464,0.00019178,2]
[403809452,1769548246024,-249.905202,0.00019178,2]
[403809454,1769548246033,-3273.728464,0.00019178,2]
[403809456,1769548246042,-249.905202,0.00019178,2]
[403809457,1769548246051,-3273.728464,0.00019178,2]
[403809459,1769548246060,-249.905202,0.00019178,2]
[403809461,1769548246069,-3273.728464,0.00019178,2]
[403809463,1769548246079,-249.905202,0.00019178,2]
[403809465,1769548246088,-3273.728464,0.00019178,2]
[403809467,1769548246097,-249.905202,0.00019178,2]
[403809469,1769548246110,-3273.728464,0.00019178,2]
[403809471,1769548246121,-249.905202,0.00019178,2]
[403809473,1769548246130,-3273.728464,0.00019178,2]
[403809475,1769548246139,-249.905202,0.00019178,2]
[403809477,1769548246148,-3273.728464,0.00019178,2]
[403809479,1769548246157,-249.905202,0.00019178,2]
[403809481,1769548246167,-3273.728464,0.00019178,2]
[403809483,1769548246176,-249.905202,0.00019178,2]
[403809485,1769548246186,-3273.728464,0.00019178,2]
[403809487,1769548246197,-249.905202,0.00019178,2]
[403809489,1769548246206,-249.905202,0.00019178,2]
[403809491,1769548246216,-3273.728464,0.00019178,2]
[403809493,1769548246227,-249.905202,0.00019178,2]
[403809496,1769548246237,-3273.728468,0.00019178,2]
[403809498,1769548246247,-249.905202,0.00019178,2]
[403809500,1769548246256,-249.905202,0.00019178,2]
[403809502,1769548246266,-249.905202,0.00019178,2]
[403809504,1769548246275,-249.90521,0.00019178,2]
[403809505,1769548246284,-1388.215631,0.00019178,2]
[403809508,1769548246294,-1388.215631,0.00019178,2]
[403809510,1769548246308,-1388.215631,0.00019178,2]
[403809512,1769548246319,-1388.215631,0.00019178,2]
[403809514,1769548246328,-1388.215631,0.00019178,2]
[403809516,1769548246338,-1388.215631,0.00019178,2]
[403809518,1769548246347,-1388.215631,0.00019178,2]
[403809520,1769548246356,-1388.215631,0.00019178,2]
[403809522,1769548246365,-1388.215631,0.00019178,2]
[403809523,1769548246374,-1388.215631,0.00019178,2]
[403809526,1769548246383,-1388.215631,0.00019178,2]
[403809527,1769548246392,-1388.215631,0.00019178,2]
[403809529,1769548246401,-1388.215631,0.00019178,2]
[403809531,1769548246410,-1388.215631,0.00019178,2]
[403809533,1769548246420,-1388.215631,0.00019178,2]
[403809535,1769548246429,-1388.215631,0.00019178,2]
[403809537,1769548246438,-1388.215631,0.00019178,2]
[403809539,1769548246451,-1388.215631,0.00019178,2]
[403809541,1769548246460,-1388.215631,0.00019178,2]
[403809543,1769548246469,-1388.215628,0.00019178,2]
[403809545,1769548246479,-151.0,0.00019178,2]
[403809547,1769548246488,-178.671989,0.00019178,2]
[403809549,1769548246497,-151.0,0.00019178,2]
[403809551,1769548246506,-151.0,0.00019178,2]
[403809553,1769548246515,-151.0,0.00019178,2]
[403809555,1769548246524,-151.0,0.00019178,2]
[403809557,1769548246534,-151.0,0.00019178,2]
[403809559,1769548246543,-151.0,0.00019178,2]
[403809561,1769548246552,-151.0,0.00019178,2]
[403809563,1769548246561,-151.0,0.00019178,2]
[403809565,1769548246570,-151.0,0.00019178,2]
[403809567,1769548246580,-151.0,0.00019178,2]
[403809569,1769548246589,-151.0,0.00019178,2]
[403809571,1769548246598,-151.0,0.00019178,2]
[403809573,1769548246607,-151.0,0.00019178,2]
[403809575,1769548246616,-151.0,0.00019178,2]
[403809577,1769548246625,-151.0,0.00019178,2]
[403809579,1769548246634,-298.982035,0.00019178,2]
[403809580,1769548246643,-372.554078,0.00019178,2]
[403809582,1769548246652,-372.554078,0.00019178,2]
[403809584,1769548246662,-372.554078,0.00019178,2]
[403809586,1769548246671,-372.554078,0.00019178,2]
[403809588,1769548246679,-372.554078,0.00019178,2]
[403809590,1769548246689,-372.554078,0.00019178,2]
[403809592,1769548246699,-372.554078,0.00019178,2]
[403809594,1769548246708,-372.554078,0.00019178,2]
[403809596,1769548246717,-372.554078,0.00019178,2]
[403809598,1769548246726,-372.554078,0.00019178,2]
[403809600,1769548246735,-372.554078,0.00019178,2]
[403809602,1769548246744,-372.554078,0.00019178,2]
[403809604,1769548246753,-372.554078,0.00019178,2]
[403809606,1769548246763,-372.554078,0.00019178,2]
[403809608,1769548246772,-372.554078,0.00019178,2]
[403809610,1769548246781,-372.554078,0.00019178,2]
[403809612,1769548246791,-372.554078,0.00019178,2]
[403809613,1769548246801,-372.554078,0.00019178,2]
[403809615,1769548246810,-372.554078,0.00019178,2]
[403809617,1769548246820,-372.554081,0.00019178,2]
[403809619,1769548246830,-151.0,0.00019178,2]
[403809621,1769548246840,-151.0,0.00019178,2]
[403809623,1769548246850,-151.0,0.00019178,2]
[403809625,1769548246859,-151.0,0.00019178,2]
[403809627,1769548246868,-172.096444,0.00019178,2]
[403809629,1769548246877,-151.0,0.00019178,2]
[403809630,1769548246886,-151.0,0.00019178,2]
[403809631,1769548246895,-151.0,0.00019178,2]
[403809632,1769548246904,-151.0,0.00019178,2]
[403809633,1769548246913,-151.0,0.00019178,2]
[403809634,1769548246922,-151.0,0.00019178,2]
[403809635,1769548246930,-151.0,0.00019178,2]
[403809636,1769548246939,-151.0,0.00019178,2]
[403809637,1769548246949,-151.0,0.00019178,2]
[403809638,1769548246958,-151.0,0.00019178,2]
[403809639,1769548246966,-151.0,0.00019178,2]
[403809640,1769548246975,-151.0,0.00019178,2]
[403809641,1769548246984,-151.0,0.00019178,2]
[403809642,1769548246993,-151.0,0.00019178,2]
[403809644,1769548247003,-151.0,0.00019178,2]
[403809646,1769548247013,-151.0,0.00019178,2]
[403809648,1769548247022,-151.0,0.00019178,2]
[403809651,1769548247031,-187.419477,0.00019178,2]
[403809653,1769548247041,-151.0,0.00019178,2]
[403809655,1769548247050,-151.0,0.00019178,2]
[403809657,1769548247059,-151.0,0.00019178,2]
[403809659,1769548247068,-151.0,0.00019178,2]
[403809661,1769548247077,-151.0,0.00019178,2]
[403809663,1769548247086,-151.0,0.00019178,2]
[403809685,1769548247285,-287.078315,0.00019178,2]
[403809687,1769548247296,-151.0,0.00019178,2]
[403809689,1769548247305,-151.0,0.00019178,2]
[403809691,1769548247316,-151.0,0.00019178,2]
[403809693,1769548247325,-151.0,0.00019178,2]
[403809695,1769548247335,-151.0,0.00019178,2]
[403809697,1769548247345,-151.0,0.00019178,2]
[403809700,1769548247354,-245.391215,0.00019178,2]
[403809702,1769548247363,-151.0,0.00019178,2]
[403809704,1769548247374,-269.660516,0.00019178,2]
[403809706,1769548247384,-631.492598,0.00019178,2]
[403809708,1769548247393,-631.492598,0.00019178,2]
[403809710,1769548247402,-631.492598,0.00019178,2]
[403809712,1769548247411,-631.492598,0.00019178,2]
[403809714,1769548247420,-631.492598,0.00019178,2]
[403809716,1769548247429,-631.492598,0.00019178,2]
[403809718,1769548247438,-631.492598,0.00019178,2]
[403809719,1769548247450,-631.492598,0.00019178,2]
[403809721,1769548247459,-631.492598,0.00019178,2]
[403809723,1769548247468,-631.492598,0.00019178,2]
[403809726,1769548247478,-631.492598,0.00019178,2]
[403809727,1769548247487,-631.492598,0.00019178,2]
[403809729,1769548247497,-631.492598,0.00019178,2]
[403809732,1769548247506,-631.492598,0.00019178,2]
[403809734,1769548247516,-631.492598,0.00019178,2]
[403809736,1769548247525,-631.492598,0.00019178,2]
[403809738,1769548247534,-631.492598,0.00019178,2]
[403809739,1769548247543,-631.492598,0.00019178,2]
[403809741,1769548247552,-631.492598,0.00019178,2]
[403809744,1769548247562,-631.492599,0.00019178,2]
[403809745,1769548247572,-151.0,0.00019178,2]
[403809748,1769548247582,-151.0,0.00019178,2]
[403809749,1769548247591,-151.0,0.00019178,2]
[403809751,1769548247600,-151.0,0.00019178,2]
[403809753,1769548247609,-151.0,0.00019178,2]
[403809755,1769548247618,-151.0,0.00019178,2]
[403809757,1769548247627,-303.10001603,0.00019278,2]
[403809759,1769548247636,-5888.0,0.00019282,2]
[403809761,1769548247644,-452.2694734,0.00019351,2]
[403809763,1769548247653,-2102.6378747,0.00019385,2]
[403809765,1769548247663,-729.0,0.00019426,2]
[403809768,1769548247673,-1378.0,0.00019428,2]
[403809770,1769548247683,-1378.0,0.00019439,2]
[403809772,1769548247692,-1378.0,0.00019457,2]
[403809773,1769548247702,-828.7413745,0.00019457,2]
[403809775,1769548247711,-176.6179849,0.00019457,2]
[403809777,1769548247720,-1780.15686302,0.00019466,2]
[403809779,1769548247729,-303.10001603,0.00019467,2]
[403809781,1769548247738,-1378.0,0.00019509,2]
[403809783,1769548247748,-1378.0,0.00019526,2]
[403809785,1769548247758,-5381.0,0.00019578,2]
[403809787,1769548247767,-5381.0,0.00019611,2]
[403809789,1769548247776,-1378.0,0.00019628,2]
[403809791,1769548247786,-33454.72959,0.00019633,2]
[403809793,1769548247795,-2982.60894464,0.00019633,2]
[403809795,1769548247804,-617.40005154,0.00019633,2]
[403809797,1769548247814,-3490.5609662,0.00019635,2]
[403809799,1769548247823,-303.10001603,0.00019656,2]
[403809801,1769548247832,-1378.0,0.00019673,2]
[403809803,1769548247841,-621.37,0.000197,2]
[403809805,1769548247850,-2061.049035,0.0001971,2]
[403809807,1769548247859,-1378.0,0.00019714,2]
[403809809,1769548247868,-178.74022062,0.00019726,2]
[403809811,1769548247878,-714.9608825,0.00019726,2]
[403809813,1769548247887,-1608.66198562,0.00019726,2]
[403809815,1769548247896,-607.57882375,0.00019726,2]
[403809817,1769548247906,-1367.05235344,0.00019726,2]
[403809819,1769548247915,-2430.31529501,0.00019726,2]
[403809821,1769548247924,-3797.36764846,0.00019726,2]
[403809822,1769548247934,-483.02384315,0.00019726,2]
[403809824,1769548247945,-869.44291766,0.00019726,2]
[403809826,1769548247955,-1545.67629807,0.00019726,2]
[403809828,1769548247963,-500.0,0.00019726,2]
[403809830,1769548247973,-1378.0,0.00019749,2]
[403809832,1769548247982,-1378.0,0.00019819,2]
[403809834,1769548247991,-1378.0,0.00019824,2]
[403809836,1769548247999,-303.10001602,0.00019845,4]
[403809838,1769548248008,-500.0,0.00019863,2]
[403809840,1769548248018,-3464.5,0.00019897,3]
[403809842,1769548248028,-1732.24,0.00019897,3]
[403809844,1769548248038,-866.12,0.00019897,3]
[403809847,1769548248047,-866.12,0.00019897,3]
[403809848,1769548248057,-1378.0,0.00019909,2]
[403809851,1769548248066,-1378.0,0.00019928,2]
[403809853,1769548248075,-553.0,0.0001993,2]
[403809855,1769548248084,-1378.0,0.00019939,2]
[403809857,1769548248093,-1780.15686302,0.00019948,2]
[403809858,1769548248103,-1378.0,0.00019949,2]
[403809861,1769548248116,-500.0,0.0002,2]
[403809863,1769548248127,-124291.86308057,0.0002,2]
[403809865,1769548248137,-292.76,0.0002,2]
[403809867,1769548248147,-167.97,0.0002,2]
[403809869,1769548248156,-171.22,0.0002,2]
[403809871,1769548248166,-13624.32,0.0002,2]
[403809873,1769548248175,-6266.17,0.0002,2]
[403809875,1769548248185,-59781.54714819,0.0002,2]
[403809880,1769548248227,-151.0,0.00019178,2]
[403809882,1769548248237,-240.503925,0.00019178,2]
[403809884,1769548248247,-4839.886902,0.0002,2]
[403810808,1769549432720,-300.0,0.00012499,2]
[403810809,1769549432730,-300.0,0.00012499,2]
[403810810,1769549432739,-597.0,0.00012499,2]
[403810811,1769549432750,-1200.0,0.00012499,2]
[403810812,1769549432759,-11671.11289658,0.000125,2]
[403810813,1769549432769,-274.95816345,0.00012876,2]
[403810814,1769549432778,-500.0,0.00012876,2]
[403810815,1769549432787,-18.57607642,0.00012876,2]
[403810833,1769549438533,-500.0,0.00012876,2]
[403810835,1769549438543,-628.28153122,0.00012876,2]
[403810837,1769549438553,-120.45091626,0.00012876,2]
[403810839,1769549438564,-379.54908374,0.00012876,2]
[403810842,1769549438575,-500.0,0.00012876,2]
[403810843,1769549438585,-500.0,0.00012876,2]
[403810845,1769549438594,-500.0,0.00012876,2]
[403810847,1769549438605,-500.0,0.00012876,2]
[403810849,1769549438614,-1446.18862576,0.00012876,2]
[403810851,1769549438623,-9601.4745411,0.00012877,2]
[403810853,1769549438634,-6437.68822742,0.00012877,2]
[403810856,1769549438646,-1155.67925356,0.00012877,2]
[403810902,1769549443679,-288.07357235,0.00012877,2]
[403810903,1769549443738,-433.3,0.00012877,2]
[403810957,1769549444872,-2947.75568637,0.00012877,2]
[403810959,1769549444881,-164.761643,0.00013164,2]
[403810961,1769549444890,-500.0,0.00013273,2]
[403810963,1769549444900,-500.0,0.00013273,2]
[403810965,1769549444909,-432.03188741,0.00013273,2]
[403810967,1769549444918,-500.0,0.00013273,2]
[403810969,1769549444927,-500.0,0.00013273,2]
[403810971,1769549444936,-500.0,0.00013273,2]
[403810973,1769549444945,-500.0,0.00013273,2]
[403810975,1769549444954,-500.0,0.00013273,2]
[403810977,1769549444963,-500.0,0.00013273,2]
[403810979,1769549444972,-500.0,0.00013273,2]
[403810981,1769549444980,-500.0,0.00013273,2]
[403810983,1769549444990,-500.0,0.00013273,2]
[403810985,1769549444999,-500.0,0.00013273,2]
[403810987,1769549445008,-1000.0,0.00013699,2]
[403810989,1769549445017,-420.0,0.00013714,2]
[403810991,1769549445026,-300.0,0.00014449,2]
[403810993,1769549445035,-300.0,0.00014449,2]
[403810995,1769549445044,-300.0,0.00014449,2]
[403810997,1769549445053,-300.0,0.00014449,2]
[403810999,1769549445062,-300.0,0.00014449,2]
[403811001,1769549445071,-300.0,0.00014449,2]
[403811003,1769549445080,-300.0,0.00014449,2]
[403811004,1769549445089,-300.0,0.00014449,2]
[403811006,1769549445098,-300.0,0.00014449,2]
[403811008,1769549445107,-300.0,0.00014449,2]
[403811010,1769549445117,-300.0,0.00014449,2]
[403811012,1769549445126,-300.0,0.00014449,2]
[403811014,1769549445135,-300.0,0.00014449,2]
[403811016,1769549445144,-300.0,0.00014449,2]
[403811018,1769549445153,-300.0,0.00014449,2]
[403811020,1769549445162,-600.0,0.00014737,2]
[403811022,1769549445171,-324.45063287,0.00014876,2]
[403811024,1769549445180,-190.842462,0.00015068,2]
[403811026,1769549445189,-295.45516263,0.00015399,2]
[403811028,1769549445198,-494.70252572,0.000154,2]
[403811170,1769549446632,-18424.2774612,0.000154,2]
[403811380,1769549526215,500.0,0.00034874,120]
[403811387,1769549536887,500.0,0.00034874,120]
[403811390,1769549540857,500.0,0.00034874,120]
[403811391,1769549542723,500.0,0.00034874,120]
[403811394,1769549546039,500.0,0.00034874,120]
[403811396,1769549549470,500.0,0.00034874,120]
[403811397,1769549549680,508.70248974,0.00034874,120]
[403811401,1769549557222,500.0,0.00034874,120]
[403811403,1769549559720,500.0,0.00034874,120]
[403811405,1769549561533,500.0,0.00034874,120]
[403811409,1769549566450,500.0,0.00034874,120]
[403811416,1769549574755,500.0,0.00034874,120]
[403811418,1769549577738,510.51134008,0.00034874,120]
[403811427,1769549594628,500.0,0.00034872,120]
[403811428,1769549596244,500.0,0.00034872,120]
[403811432,1769549605201,500.0,0.00034872,120]
[403811439,1769549616145,431.43148,0.00034872,120]
[403811444,1769549624896,500.0,0.00034872,120]
[403811490,1769549718412,500.0,0.00034872,120]
[403811496,1769549730730,528.345298,0.00034872,120]
[403811497,1769549734466,500.0,0.00034872,120]
[403811499,1769549736371,564.03080207,0.00034872,120]
[403811500,1769549737325,500.0,0.00034872,120]
[403811501,1769549742046,500.0,0.00034872,120]
[403811503,1769549744931,500.0,0.00034872,120]
[403811515,1769549768221,500.0,0.00034872,120]
[403811517,1769549772054,500.0,0.00034872,120]
[403811520,1769549774400,500.0,0.00034872,120]
[403811521,1769549774720,500.0,0.00034872,120]
[403811523,1769549776571,500.0,0.00034872,120]
[403811526,1769549778650,500.0,0.00034872,120]
[403811527,1769549779540,500.0,0.00034872,120]
[403811529,1769549783833,500.0,0.00034872,120]
[403811531,1769549784545,500.0,0.00034872,120]
[403811537,1769549791086,500.0,0.00034872,120]
[403811540,1769549796580,500.0,0.00034872,120]
[403811552,1769549810114,500.0,0.00034872,120]
[403811553,1769549810634,500.0,0.00034872,120]
[403811554,1769549811031,500.0,0.00034872,120]
[403811555,1769549811303,500.0,0.00034872,120]
[403811556,1769549813493,500.0,0.00034872,120]
[403811557,1769549813746,266.72251503,0.00034872,120]
[403811559,1769549816061,500.0,0.00034872,120]
[403811567,1769549818769,596.16921715,0.00034872,120]
[403811578,1769549833708,500.0,0.00034872,120]
[403811579,1769549833940,500.0,0.00034872,120]
[403811580,1769549834961,500.0,0.00034872,120]
[403811581,1769549836968,577.21240241,0.00034872,120]
[403811582,1769549838194,500.0,0.00034872,120]
[403811586,1769549838719,500.0,0.00034872,120]
[403811589,1769549840499,500.0,0.00034872,120]
[403811593,1769549843084,500.0,0.00034872,120]
[403811598,1769549848398,500.0,0.00034872,120]
[403811606,1769549853902,500.0,0.00034872,120]
[403811607,1769549854738,500.0,0.00034872,120]
[403811608,1769549856046,500.0,0.00034872,120]
[403811609,1769549857848,500.0,0.00034872,120]
[403811610,1769549859950,500.0,0.00034872,120]
[403811611,1769549860036,230.11929761,0.00034872,120]
[403811612,1769549860219,500.0,0.00034872,120]
[403811614,1769549862138,500.0,0.00034872,120]
[403811615,1769549864309,500.0,0.00034872,120]
[403811616,1769549864549,413.10845489,0.00034872,120]
[403811623,1769549871801,500.0,0.00034872,120]
[403811624,1769549872160,500.0,0.00034872,120]
[403811626,1769549873628,509.5710154,0.00034872,120]
[403811627,1769549874318,500.0,0.00034872,120]
[403811628,1769549874503,500.0,0.00034872,120]
[403811629,1769549875450,500.0,0.00034872,120]
[403811630,1769549875739,500.0,0.00034872,120]
[403811631,1769549875990,250.62,0.00034872,120]
[403811633,1769549877868,500.0,0.00034872,120]
[403811634,1769549879095,500.0,0.00034872,120]
[403811635,1769549879342,500.0,0.00034872,120]
[403811637,1769549881801,500.0,0.00034872,120]
[403811638,1769549882041,247.81364231,0.00034872,120]
[403811639,1769549882355,500.0,0.00034872,120]
[403811641,1769549885344,500.0,0.00034872,120]
[403811642,1769549885613,500.0,0.00034872,120]
[403811643,1769549887026,500.0,0.00034872,120]
[403811646,1769549890533,500.0,0.00034872,120]
[403811647,1769549890779,500.0,0.00034872,120]
[403811653,1769549912034,500.0,0.00034882,120]
[403811654,1769549912274,500.0,0.00034882,120]
[403811655,1769549912502,500.0,0.00034882,120]
[403811657,1769549913116,161.25,0.00034882,120]
[403811661,1769549930723,591.44,0.00034882,120]
[403811665,1769549941829,500.0,0.00034882,120]
[403811666,1769549942214,500.0,0.00034882,120]
[403811670,1769549946568,356.62972355,0.00034882,120]
[403811679,1769549961542,500.0,0.00034882,120]
[403811680,1769549961783,500.0,0.00034882,120]
[403811689,1769549976110,500.0,0.00034882,120]
[403811690,1769549978644,500.0,0.00034882,120]
[403811691,1769549979303,500.0,0.00034882,120]
[403811694,1769549983805,500.0,0.00034882,120]
[403811697,1769549989370,500.0,0.00034882,120]
[403811698,1769549989619,500.0,0.00034882,120]
[403811708,1769550005439,500.0,0.00034882,120]
[403811719,1769550014087,500.0,0.00034882,120]
[403811721,1769550014725,500.0,0.00034882,120]
[403811722,1769550014975,269.62,0.00034882,120]
[403811723,1769550015209,500.0,0.00034882,120]
[403811724,1769550015485,500.0,0.00034882,120]
[403811725,1769550017004,560.41681701,0.00034882,120]
[403811726,1769550022583,500.0,0.00034882,120]
[403811728,1769550024073,298.29968739,0.00034882,120]
[403811729,1769550025900,500.0,0.00034882,120]
[403811734,1769550035558,500.0,0.00034882,120]
[403811742,1769550049787,500.0,0.00034882,120]
[403811743,1769550050069,500.0,0.00034882,120]
[403811744,1769550061693,500.0,0.00034882,120]
[403811745,1769550061947,500.0,0.00034882,120]
[403811746,1769550062267,500.0,0.00034882,120]
[403811747,1769550078818,500.0,0.00034882,120]
[403811748,1769550079080,500.0,0.00034882,120]
[403811749,1769550083215,500.0,0.00034882,120]
[403811750,1769550083421,500.0,0.00034882,120]
[403811751,1769550091015,500.0,0.00034882,120]
[403811752,1769550091888,500.0,0.00034882,120]
[403811755,1769550096600,500.0,0.00034882,120]
[403811756,1769550099914,500.0,0.00034882,120]
[403811757,1769550100153,234.8883051,0.00034882,120]
[403811758,1769550105492,500.0,0.00034882,120]
[403811761,1769550120290,212.43463031,0.00034882,120]
[403811763,1769550135564,500.0,0.00034882,120]
[403811764,1769550135815,500.0,0.00034882,120]
[403811765,1769550144396,500.0,0.00034882,120]
[403811766,1769550144774,500.0,0.00034882,120]
[403811767,1769550149075,500.0,0.00034882,120]